fUST/lending_fUST_20240925
["ID","MTS","AMOUNT","RATE_DAILY","PERIOD"]
[339106453,1727251838687,-360.51125658,0.000144,2]
[339106454,1727251838696,-168.020412,0.00014462,2]
[339106455,1727251838706,-1057.40288369,0.000145,2]
[339106456,1727251838716,-168.020412,0.00014542,2]
[339106457,1727251838729,-245.94388145,0.00014863,2]
[339106458,1727251838770,-54.05611855,0.00014863,2]
[339106459,1727251838779,-300.0,0.00014863,2]
[339106460,1727251838789,-154.04205003,0.000149,2]
[339106461,1727251838799,-500.0,0.00015067,2]
[339106462,1727251838808,-500.0,0.00015067,2]
[339106463,1727251838817,-278.71347044,0.00015067,2]
[339106464,1727251838827,-500.0,0.00015067,2]
[339106465,1727251838837,-205.62385155,0.00015067,2]
[339106466,1727251838847,-500.0,0.00015067,2]
[339106468,1727251838856,-500.0,0.00015067,2]
[339106470,1727251838865,-500.0,0.00015067,2]
[339106471,1727251838875,-500.0,0.00015067,2]
[339106472,1727251838884,-500.0,0.00015067,2]
[339106473,1727251838893,-108.61505863,0.00015067,2]
[339106474,1727251838905,-391.38494137,0.00015067,2]
[339106475,1727251838914,-500.0,0.00015067,2]
[339106476,1727251838924,-216.94585596,0.00015067,2]
[339106477,1727251838933,-500.0,0.00015067,2]
[339106478,1727251838942,-500.0,0.00015067,2]
[339106479,1727251838952,-500.0,0.00015067,2]
[339106480,1727251838961,-500.0,0.00015067,2]
[339106481,1727251838971,-500.0,0.00015067,2]
[339106482,1727251838980,-500.0,0.00015067,2]
[339106483,1727251838990,-500.0,0.00015067,2]
[339106484,1727251838999,-500.0,0.00015067,2]
[339106485,1727251839009,-500.0,0.00015067,2]
[339106486,1727251839018,-500.0,0.00015067,2]
[339106487,1727251839028,-500.0,0.00015067,2]
[339106488,1727251839037,-500.0,0.00015067,2]
[339106489,1727251839047,-500.0,0.00015067,2]
[339106490,1727251839056,-500.0,0.00015067,2]
[339106491,1727251839065,-500.0,0.00015067,2]
[339106492,1727251839075,-375.62633779,0.00015067,2]
[339106510,1727251840460,-124.37366221,0.00015067,2]
[339106511,1727251840470,-500.0,0.00015067,2]
[339106512,1727251840479,-500.0,0.00015067,2]
[339106514,1727251840489,-500.0,0.00015067,2]
[339106516,1727251840498,-500.0,0.00015067,2]
[339106517,1727251840511,-500.0,0.00015067,2]
[339106518,1727251840520,-500.0,0.00015067,2]
[339106519,1727251840530,-500.0,0.00015067,2]
[339106520,1727251840541,-500.0,0.00015067,2]
[339106521,1727251840552,-3805.828273,0.00015068,2]
[339106522,1727251840562,-525.0,0.00015983,2]
[339106523,1727251840571,-154.532,0.00015983,2]
[339106524,1727251840580,-1334.605,0.00015983,2]
[339106525,1727251840590,-153.0,0.00016093,2]
[339106526,1727251840600,-153.0,0.00016093,2]
[339106527,1727251840610,-153.0,0.00016093,2]
[339106528,1727251840620,-153.0,0.00016093,2]
[339106529,1727251840632,-153.0,0.00016093,2]
[339106530,1727251840646,-153.0,0.00016093,2]
[339106531,1727251840658,-306.0,0.00016093,2]
[339106532,1727251840669,-153.0,0.00016093,2]
[339106533,1727251840679,-153.0,0.00016093,2]
[339106534,1727251840690,-153.0,0.00016093,2]
[339106535,1727251840699,-153.0,0.00016093,2]
[339106536,1727251840709,-153.0,0.00016093,2]
[339106537,1727251840719,-153.0,0.00016093,2]
[339106538,1727251840729,-153.0,0.00016093,2]
[339106539,1727251840738,-153.0,0.00016093,2]
[339106540,1727251840748,-153.0,0.00016093,2]
[339106541,1727251840757,-153.0,0.00016093,2]
[339106542,1727251840768,-153.0,0.00016093,2]
[339106543,1727251840777,-153.0,0.00016093,2]
[339106544,1727251840786,-153.0,0.00016093,2]
[339106545,1727251840796,-153.0,0.00016093,2]
[339106546,1727251840806,-209.0432937,0.00016101,2]
[339106547,1727251840816,-209.0432937,0.00016101,2]
[339106548,1727251840825,-209.0432937,0.00016101,2]
[339106549,1727251840836,-209.0875088,0.00016101,2]
[339106550,1727251840845,-417.9667033,0.00016101,2]
[339106551,1727251840856,-209.0432937,0.00016101,2]
[339106552,1727251840867,-209.0432937,0.00016101,2]
[339106553,1727251840876,-209.0432937,0.00016101,2]
[339106554,1727251840885,-340.1408437,0.00016101,2]
[339106555,1727251840895,-209.0432937,0.00016101,2]
[339106556,1727251840904,-209.0432937,0.00016101,2]
[339106557,1727251840914,-209.0432937,0.00016101,2]
[339106558,1727251840923,-209.0432937,0.00016101,2]
[339106559,1727251840933,-209.0432937,0.00016101,2]
[339106560,1727251840942,-209.0432937,0.00016101,2]
[339106561,1727251840951,-209.0432937,0.00016101,2]
[339106562,1727251840960,-176.0,0.0001613,2]
[339106563,1727251840970,-420.0,0.00016269,2]
[339106564,1727251840979,-1000.0,0.00016294,2]
[339106565,1727251840988,-1000.0,0.00016328,2]
[339106566,1727251840998,-420.0,0.00016349,2]
[339106567,1727251841008,-7146.18197968,0.00016358,2]
[339106568,1727251841017,-1000.0,0.00016364,2]
[339106569,1727251841026,-1000.0,0.00016397,2]
[339106570,1727251841037,-5714.451,0.00016398,2]
[339106571,1727251841047,-500.0,0.00016407,2]
[339106572,1727251841058,-153.59171217,0.00016407,2]
[339106573,1727251841068,-500.0,0.00016407,2]
[339106574,1727251841078,-253.48211324,0.00016407,2]
[339106575,1727251841087,-169.45943226,0.00016407,2]
[339106576,1727251841097,-500.0,0.00016407,2]
[339106577,1727251841106,-261.41390727,0.00016407,2]
[339106578,1727251841116,-500.0,0.00016407,2]
[339106579,1727251841125,-500.0,0.00016407,2]
[339106580,1727251841135,-500.0,0.00016407,2]
[339106581,1727251841145,-44.28367498,0.00016407,2]
[339106592,1727251843456,-455.71632502,0.00016407,2]
[339106594,1727251843466,-500.0,0.00016407,2]
[339106595,1727251843475,-447.47779599,0.00016407,2]
[339106596,1727251843485,-500.0,0.00016407,2]
[339106597,1727251843495,-8151.1384926,0.00016408,2]
[339106614,1727252425822,4430.55808013,0.0002203,120]
[339106621,1727252899717,398.18404025,0.000123,2]
[339106622,1727252923198,10071.86028275,0.00014,2]
[339106623,1727252923657,1545.08216722,0.0001,2]
[339106660,1727253038857,-300.0,0.00014809,2]
[339106662,1727253038867,-24900.0,0.0001481,2]
[339106664,1727253038877,-205.5253733,0.00015032,2]
[339106666,1727253038887,-218.026253,0.00015103,2]
[339106668,1727253038897,-500.0,0.00015709,2]
[339106670,1727253038907,-500.0,0.00015709,2]
[339106673,1727253038917,-500.0,0.00015709,2]
[339106675,1727253038927,-171.6945856,0.00015709,2]
[339106677,1727253038938,-500.0,0.00015712,7]
[339106679,1727253038947,-178.19,0.00015712,7]
[339106681,1727253038957,-153.0,0.000158,2]
[339106683,1727253038967,-153.0,0.000158,2]
[339106685,1727253038977,-209.0432937,0.000158,2]
[339106687,1727253038987,-153.0,0.000158,2]
[339106689,1727253038997,-209.0432937,0.000158,2]
[339106691,1727253039007,-153.0,0.000158,2]
[339106693,1727253039017,-209.0432937,0.000158,2]
[339106695,1727253039027,-7146.18197968,0.00016035,2]
[339106697,1727253039037,-150.33327791,0.00016045,2]
[339106699,1727253039047,-153.0,0.000161,2]
[339106701,1727253039056,-304.1727983,0.000161,2]
[339106703,1727253039066,-244.8342893,0.00016101,2]
[339106705,1727253039075,-418.0865874,0.00016101,2]
[339106707,1727253039085,-209.0432937,0.00016101,2]
[339106709,1727253039095,-209.0432937,0.00016101,2]
[339106711,1727253039105,-213.0638101,0.00016101,2]
[339106714,1727253039115,-153.0,0.000162,2]
[339106716,1727253039125,-150.21856542,0.00016287,2]
[339106718,1727253039135,-1000.0,0.00016287,2]
[339106719,1727253039144,-150.21856542,0.00016287,2]
[339106721,1727253039154,-150.21856542,0.00016288,2]
[339106723,1727253039163,-150.21856542,0.00016288,2]
[339106725,1727253039173,-150.21856542,0.00016288,2]
[339106727,1727253039182,-420.0,0.0001629,2]
[339106729,1727253039191,-306.0,0.000163,2]
[339106731,1727253039201,-326.74692344,0.00016373,2]
[339106733,1727253039212,-500.0,0.00016373,2]
[339106735,1727253039225,-500.0,0.00016373,2]
[339106737,1727253039235,-500.0,0.00016373,2]
[339106739,1727253039244,-500.0,0.00016373,2]
[339106742,1727253039254,-500.0,0.00016373,2]
[339106743,1727253039263,-500.0,0.00016373,2]
[339106744,1727253039274,-500.54961617,0.00016373,2]
[339106745,1727253039285,-500.0,0.00016373,2]
[339106746,1727253039295,-500.0,0.00016373,2]
[339106747,1727253039305,-532.98973509,0.00016376,2]
[339106748,1727253039315,-468.62160258,0.00016376,2]
[339106749,1727253039325,-500.0,0.00016376,2]
[339106750,1727253039335,-500.0,0.00016376,2]
[339106751,1727253039345,-500.0,0.00016376,2]
[339106752,1727253039355,-500.0,0.00016376,2]
[339106753,1727253039366,-263.23445719,0.00016376,2]
[339106754,1727253039376,-500.0,0.00016376,2]
[339106755,1727253039387,-177.43747927,0.00016376,2]
[339106756,1727253039397,-2005.35034252,0.00016377,2]
[339106757,1727253039406,-67084.65347068,0.00016377,2]
[339106758,1727253039417,-166188.56401614,0.00016377,2]
[339106759,1727253039427,-4914.87619368,0.00016377,2]
[339106760,1727253039436,-43956.5500526,0.00016377,2]
[339106761,1727253039446,-9829.75238736,0.00016377,2]
[339106762,1727253039457,-69182.23117184,0.00016377,2]
[339106771,1727253040621,-18730.86893346,0.00016377,2]
[339106772,1727253040632,-2457.43809684,0.00016378,2]
[339106773,1727253040642,-21978.2750263,0.00016378,2]
[339106774,1727253040652,-2457.43809684,0.00016378,2]
[339106775,1727253040663,-21978.2750263,0.00016378,2]
[339106776,1727253040672,-3621.527202,0.00016387,2]
[339106777,1727253040682,-404.68348,0.00016387,2]
[339106778,1727253040691,-3621.527202,0.00016387,2]
[339106779,1727253040701,-151.0,0.00016387,2]
[339106780,1727253040710,-404.68348,0.00016387,2]
[339106781,1727253040721,-326.961009,0.00016387,2]
[339106782,1727253040733,-505.929772,0.00016387,2]
[339106783,1727253040743,-326.961009,0.00016387,2]
[339106784,1727253040755,-505.929772,0.00016387,2]
[339106785,1727253040766,-151.852091,0.00016387,2]
[339106786,1727253040776,-151.0,0.00016387,2]
[339106787,1727253040785,-285.485354,0.00016387,2]
[339106788,1727253040794,-285.485354,0.00016387,2]
[339106789,1727253040804,-1442.70869,0.00016387,2]
[339106790,1727253040814,-1442.70869,0.00016387,2]
[339106791,1727253040827,-841.241069,0.00016388,2]
[339106792,1727253040837,-841.241069,0.00016388,2]
[339106793,1727253040849,-1445.609468,0.00016388,2]
[339106794,1727253040860,-1445.609468,0.00016388,2]
[339106795,1727253040870,-151.0,0.00016388,2]
[339106796,1727253040879,-509.951496,0.00016388,2]
[339106797,1727253040888,-151.0,0.00016388,2]
[339106798,1727253040898,-509.951496,0.00016388,2]
[339106799,1727253040907,-327.818283,0.00016388,2]
[339106800,1727253040916,-327.818283,0.00016388,2]
[339106801,1727253040926,-3621.527202,0.00016388,2]
[339106802,1727253040936,-404.68348,0.00016388,2]
[339106803,1727253040945,-3621.527202,0.00016388,2]
[339106804,1727253040955,-404.68348,0.00016388,2]
[339106805,1727253040967,-326.961009,0.00016388,2]
[339106806,1727253040976,-505.929772,0.00016388,2]
[339106807,1727253040986,-326.961009,0.00016388,2]
[339106808,1727253040996,-505.929772,0.00016388,2]
[339106809,1727253041006,-151.0,0.00016388,2]
[339106810,1727253041017,-285.485354,0.00016388,2]
[339106811,1727253041027,-285.485354,0.00016388,2]
[339106812,1727253041039,-1442.70869,0.00016388,2]
[339106813,1727253041050,-1442.70869,0.00016388,2]
[339106814,1727253041062,-2457.43809684,0.00016389,2]
[339106815,1727253041072,-21978.2750263,0.00016389,2]
[339106816,1727253041081,-1228.71904842,0.00016398,2]
[339106817,1727253041091,-10989.1375132,0.00016398,2]
[339106818,1727253041100,-3621.527202,0.00016399,2]
[339106819,1727253041110,-404.68348,0.00016399,2]
[339106820,1727253041119,-3621.527202,0.00016399,2]
[339106821,1727253041128,-404.68348,0.00016399,2]
[339106822,1727253041138,-326.961009,0.00016399,2]
[339106823,1727253041147,-505.929772,0.00016399,2]
[339106824,1727253041158,-326.961009,0.00016399,2]
[339106825,1727253041168,-505.929772,0.00016399,2]
[339106826,1727253041177,-151.0,0.00016399,2]
[339106827,1727253041186,-285.485354,0.00016399,2]
[339106828,1727253041196,-285.485354,0.00016399,2]
[339106829,1727253041205,-1442.70869,0.00016399,2]
[339106830,1727253041216,-1442.70869,0.00016399,2]
[339106831,1727253041225,-150.112238,0.000164,2]
[339106832,1727253041234,-153.00898414,0.000164,2]
[339106833,1727253041244,-150.112233,0.000164,2]
[339106834,1727253041253,-150.112233,0.000164,2]
[339106835,1727253041263,-150.112233,0.000164,2]
[339106836,1727253041272,-150.112233,0.000164,2]
[339106837,1727253041282,-150.112233,0.000164,2]
[339106838,1727253041291,-160.612765,0.000164,2]
[339106839,1727253041301,-316.92493701,0.00016407,2]
[339106840,1727253041310,-2083.0013655,0.00016408,2]
[339106841,1727253041320,-151.0,0.00016408,2]
[339106842,1727253041329,-841.241069,0.00016408,2]
[339106843,1727253041339,-841.241069,0.00016408,2]
[339106844,1727253041348,-1445.609468,0.00016408,2]
[339106845,1727253041358,-1445.609468,0.00016408,2]
[339106846,1727253041367,-151.0,0.00016408,2]
[339106847,1727253041376,-509.951496,0.00016408,2]
[339106848,1727253041385,-151.0,0.00016408,2]
[339106849,1727253041395,-509.951496,0.00016408,2]
[339106850,1727253041406,-327.818283,0.00016408,2]
[339106851,1727253041415,-327.818283,0.00016408,2]
[339106852,1727253041425,-252.04209794,0.00016408,2]
[339106853,1727253041434,-921.83134919,0.00016409,2]
[339106854,1727253041443,-1228.71904842,0.00016418,2]
[339106855,1727253041453,-4965.62491023,0.00016418,2]
[339106864,1727253046661,-209.0432937,0.000158,2]
[339106865,1727253046671,-309.8303991,0.00016093,2]
[339106866,1727253046681,-409.67064872,0.00016418,2]
[339106867,1727253046693,-5613.84195425,0.00016418,2]
[339106868,1727253046703,-247.087315,0.00016418,2]
[339106869,1727253046712,-247.087315,0.00016418,2]
[339106870,1727253046723,-151.0,0.00016418,2]
[339106871,1727253046732,-151.0,0.00016418,2]
[339106872,1727253046742,-254.839435,0.00016418,2]
[339106873,1727253046751,-254.839435,0.00016418,2]
[339106874,1727253046761,-151.0,0.00016418,2]
[339106875,1727253046771,-216.892306,0.00016418,2]
[339106876,1727253046781,-216.892306,0.00016418,2]
[339106877,1727253046791,-157.840358,0.00016418,2]
[339106878,1727253046801,-157.840358,0.00016418,2]
[339106879,1727253046812,-151.0,0.00016418,2]
[339106880,1727253046822,-151.0,0.00016418,2]
[339106881,1727253046831,-151.0,0.00016418,2]
[339106882,1727253046841,-80.11501067,0.00016418,2]
[339106884,1727253118044,704.43,0.00010959,2]
[339106896,1727253415218,10000.0,0.000141,2]
[339106897,1727253432743,10000.0,0.000141,2]
[339106898,1727253449409,10000.0,0.000141,2]
[339106899,1727253472762,10000.0,0.000141,2]
[339106904,1727254001136,-300.0,0.00015304,2]
[339106905,1727254001159,-110.73247094,0.00015304,2]
[339106998,1727254238096,-375.179574,0.00015211,2]
[339106999,1727254238107,-297.73434808,0.00015248,2]
[339107000,1727254238123,-2.26565192,0.00015248,2]
[339107002,1727254238134,-300.0,0.00015248,2]
[339107004,1727254238145,-24900.0,0.00015249,2]
[339107005,1727254238158,-185.74384284,0.00015892,2]
[339107006,1727254238168,-7146.18197968,0.00015893,2]
[339107007,1727254238179,-375.179574,0.00015896,2]
[339107008,1727254238190,-602.02615886,0.0001599,2]
[339107009,1727254238256,-5400.97639521,0.0001599,2]
[339107010,1727254238267,-180.0,0.0001609,2]
[339107011,1727254238277,-209.0875088,0.000161,2]
[339107012,1727254238287,-1155.55753076,0.00016177,2]
[339107013,1727254238297,-1000.0,0.00016191,2]
[339107014,1727254238307,-153.0,0.000162,2]
[339107015,1727254238319,-1000.0,0.00016216,2]
[339107016,1727254238329,-1000.0,0.00016248,2]
[339107017,1727254238340,-1000.0,0.00016272,2]
[339107018,1727254238352,-1000.0,0.00016273,2]
[339107019,1727254238363,-1000.0,0.00016288,2]
[339107020,1727254238374,-250.3642757,0.00016299,2]
[339107021,1727254238384,-1000.0,0.000163,2]
[339107022,1727254238394,-153.0,0.000163,2]
[339107023,1727254238404,-209.0432937,0.000163,2]
[339107024,1727254238414,-423.176892,0.000163,2]
[339107025,1727254238425,-418.0865874,0.000163,2]
[339107026,1727254238437,-306.0,0.000163,2]
[339107027,1727254238448,-1000.0,0.00016302,2]
[339107028,1727254238458,-921.83134919,0.00016368,2]
[339107029,1727254238469,-316.92493701,0.00016377,2]
[339107030,1727254238479,-4046.50579606,0.0001638,2]
[339107031,1727254238489,-19280.9412733,0.0001638,2]
[339107032,1727254238500,-151.0,0.00016387,2]
[339107033,1727254238512,-151.0,0.00016387,2]
[339107034,1727254238522,-151.0,0.00016388,2]
[339107035,1727254238534,-286.843106,0.00016388,2]
[339107036,1727254238546,-4046.50579606,0.0001639,2]
[339107037,1727254238557,-19280.9412733,0.0001639,2]
[339107038,1727254238568,-173.33921802,0.00016396,2]
[339107039,1727254238578,-500.0,0.00016396,2]
[339107040,1727254238588,-614.94630706,0.00016396,2]
[339107041,1727254238599,-232.84142687,0.00016396,2]
[339107042,1727254238610,-500.0,0.00016396,2]
[339107043,1727254238620,-500.0,0.00016396,2]
[339107044,1727254238631,-199.41306054,0.00016396,2]
[339107045,1727254238641,-500.0,0.00016396,2]
[339107046,1727254238653,-254.61174689,0.00016396,2]
[339107047,1727254238663,-500.0,0.00016396,2]
[339107048,1727254238674,-500.0,0.00016396,2]
[339107049,1727254238686,-500.0,0.00016396,2]
[339107050,1727254238697,-500.0,0.00016396,2]
[339107051,1727254238710,-4046.50579606,0.00016397,2]
[339107052,1727254238720,-19280.9412733,0.00016397,2]
[339107053,1727254238730,-4046.50579606,0.00016398,2]
[339107054,1727254238742,-19280.9412733,0.00016398,2]
[339107055,1727254238754,-6069.75869409,0.00016398,2]
[339107056,1727254238765,-28921.4119099,0.00016398,2]
[339107057,1727254238775,-151.0,0.00016399,2]
[339107058,1727254239037,-150.112233,0.000164,2]
[339107059,1727254239061,-150.112233,0.000164,2]
[339107060,1727254239073,-150.112233,0.000164,2]
[339107061,1727254239082,-150.112233,0.000164,2]
[339107062,1727254239093,-150.112233,0.000164,2]
[339107063,1727254239102,-150.112233,0.000164,2]
[339107064,1727254239112,-160.61277,0.000164,2]
[339107065,1727254239122,-90846.5888995,0.000164,2]
[339107066,1727254239131,-631.123,0.000164,2]
[339107067,1727254239141,-198.51650788,0.000164,2]
[339107068,1727254239150,-209.0875088,0.000164,2]
[339107069,1727254239159,-2339.5753996,0.000164,2]
[339107070,1727254239170,-8093.01159212,0.00016407,2]
[339107071,1727254239179,-38561.8825465,0.00016407,2]
[339107072,1727254239189,-4046.50579606,0.00016408,2]
[339107073,1727254239198,-19280.9412733,0.00016408,2]
[339107074,1727254239208,-4046.50579606,0.00016408,2]
[339107075,1727254239218,-19280.9412733,0.00016408,2]
[339107076,1727254239227,-151.0,0.00016408,2]
[339107077,1727254239237,-151.0,0.00016408,2]
[339107078,1727254239246,-151.0,0.00016408,2]
[339107079,1727254239255,-151.0,0.00016408,2]
[339107080,1727254239265,-151.0,0.00016408,2]
[339107081,1727254239274,-974.637194,0.00016408,2]
[339107082,1727254239284,-974.637194,0.00016408,2]
[339107083,1727254239293,-974.637194,0.00016408,2]
[339107084,1727254239302,-974.637194,0.00016408,2]
[339107085,1727254239312,-151.0,0.00016408,2]
[339107086,1727254239321,-151.0,0.00016408,2]
[339107087,1727254239330,-1528.644466,0.00016408,2]
[339107088,1727254239340,-1528.644466,0.00016408,2]
[339107089,1727254239350,-1528.644466,0.00016408,2]
[339107090,1727254239359,-1528.644466,0.00016408,2]
[339107091,1727254239370,-151.0,0.00016408,2]
[339107092,1727254239388,-265.842267,0.00016408,2]
[339107093,1727254239398,-170.007318,0.00016408,2]
[339107094,1727254239407,-170.007318,0.00016408,2]
[339107095,1727254239416,-439.478236,0.00016408,2]
[339107096,1727254239426,-439.478236,0.00016408,2]
[339107098,1727254239435,-2023.25289803,0.00016408,2]
[339107100,1727254239444,-9640.47063663,0.00016408,2]
[339107102,1727254239454,-1000.0,0.00016413,2]
[339107104,1727254239463,-151.0,0.00016417,2]
[339107105,1727254239473,-208.003114,0.00016417,2]
[339107106,1727254239482,-347.388722,0.00016417,2]
[339107108,1727254239493,-347.388722,0.00016417,2]
[339107110,1727254239503,-301.38725,0.00016417,2]
[339107112,1727254239513,-151.0,0.00016417,2]
[339107114,1727254239524,-301.38725,0.00016417,2]
[339107117,1727254239538,-151.0,0.00016417,2]
[339107119,1727254239548,-151.0,0.00016417,2]
[339107121,1727254239559,-386.854219,0.00016417,2]
[339107123,1727254239568,-259.385034,0.00016417,2]
[339107125,1727254239578,-386.854219,0.00016417,2]
[339107127,1727254239588,-259.385034,0.00016417,2]
[339107129,1727254239598,-623.567357,0.00016417,2]
[339107131,1727254239608,-623.567357,0.00016417,2]
[339107133,1727254239619,-1957.786936,0.00016417,2]
[339107135,1727254239630,-1957.786936,0.00016417,2]
[339107137,1727254239641,-151.0,0.00016417,2]
[339107139,1727254239651,-1575.612893,0.00016417,2]
[339107141,1727254239660,-1575.612893,0.00016417,2]
[339107143,1727254239670,-151.0,0.00016417,2]
[339107145,1727254239680,-151.0,0.00016417,2]
[339107147,1727254239689,-565.385126,0.00016417,2]
[339107149,1727254239698,-565.385126,0.00016417,2]
[339107151,1727254239707,-1612.94631,0.00016417,2]
[339107153,1727254239716,-232.330211,0.00016417,2]
[339107155,1727254239726,-1612.94631,0.00016417,2]
[339107157,1727254239735,-1184.114977,0.00016417,2]
[339107159,1727254239745,-1184.114977,0.00016417,2]
[339107161,1727254239755,-974.637194,0.00016417,2]
[339107164,1727254239765,-974.637194,0.00016417,2]
[339107166,1727254239775,-384.647556,0.00016417,2]
[339107168,1727254239784,-384.647556,0.00016417,2]
[339107170,1727254239793,-151.0,0.00016417,2]
[339107172,1727254239802,-1528.644466,0.00016417,2]
[339107174,1727254239811,-1528.644466,0.00016417,2]
[339107176,1727254239822,-151.0,0.00016417,2]
[339107177,1727254239832,-170.007318,0.00016417,2]
[339107179,1727254239841,-170.007318,0.00016417,2]
[339107181,1727254239851,-439.478236,0.00016417,2]
[339107183,1727254239860,-439.478236,0.00016417,2]
[339107186,1727254239873,-151.0,0.00016418,2]
[339107188,1727254239883,-151.0,0.00016418,2]
[339107190,1727254239892,-347.388722,0.00016418,2]
[339107192,1727254239906,-347.388722,0.00016418,2]
[339107194,1727254239917,-301.38725,0.00016418,2]
[339107196,1727254239929,-151.0,0.00016418,2]
[339107198,1727254239939,-301.38725,0.00016418,2]
[339107201,1727254239950,-151.0,0.00016418,2]
[339107203,1727254239962,-151.0,0.00016418,2]
[339107205,1727254239971,-386.854219,0.00016418,2]
[339107207,1727254239981,-259.385034,0.00016418,2]
[339107209,1727254239991,-386.854219,0.00016418,2]
[339107211,1727254240002,-259.385034,0.00016418,2]
[339107213,1727254240013,-623.567357,0.00016418,2]
[339107215,1727254240024,-623.567357,0.00016418,2]
[339107217,1727254240037,-1957.786936,0.00016418,2]
[339107219,1727254240047,-1957.786936,0.00016418,2]
[339107222,1727254240057,-151.0,0.00016418,2]
[339107224,1727254240067,-1575.612893,0.00016418,2]
[339107225,1727254240076,-1575.612893,0.00016418,2]
[339107227,1727254240086,-2083.0013655,0.00016418,2]
[339107229,1727254240095,-151.0,0.00016418,2]
[339107231,1727254240106,-151.0,0.00016418,2]
[339107234,1727254240116,-207.511894,0.00016418,2]
[339107236,1727254240125,-565.385126,0.00016418,2]
[339107238,1727254240135,-565.385126,0.00016418,2]
[339107240,1727254240145,-1612.94631,0.00016418,2]
[339107242,1727254240155,-1612.94631,0.00016418,2]
[339107244,1727254240166,-1184.114977,0.00016418,2]
[339107246,1727254240175,-1184.114977,0.00016418,2]
[339107248,1727254240185,-974.637194,0.00016418,2]
[339107249,1727254240194,-974.637194,0.00016418,2]
[339107251,1727254240203,-974.637194,0.00016418,2]
[339107253,1727254240213,-974.637194,0.00016418,2]
[339107254,1727254240222,-384.647556,0.00016418,2]
[339107256,1727254240232,-384.647556,0.00016418,2]
[339107258,1727254240242,-151.0,0.00016418,2]
[339107260,1727254240251,-151.0,0.00016418,2]
[339107262,1727254240261,-1528.644466,0.00016418,2]
[339107264,1727254240271,-1528.644466,0.00016418,2]
[339107266,1727254240282,-1528.644466,0.00016418,2]
[339107267,1727254240292,-1528.644466,0.00016418,2]
[339107269,1727254240302,-216.892306,0.00016428,2]
[339107271,1727254240312,-216.892306,0.00016428,2]
[339107273,1727254240324,-151.0,0.00016428,2]
[339107275,1727254240335,-151.0,0.00016428,2]
[339107277,1727254240346,-151.0,0.00016428,2]
[339107280,1727254240357,-151.0,0.00016428,2]
[339107282,1727254240367,-151.0,0.00016428,2]
[339107284,1727254240377,-323.721354,0.00016428,2]
[339107286,1727254240385,-323.721354,0.00016428,2]
[339107288,1727254240395,-410.867867,0.00016428,2]
[339107290,1727254240404,-151.0,0.00016428,2]
[339107292,1727254240414,-410.867867,0.00016428,2]
[339107294,1727254240424,-151.0,0.00016428,2]
[339107296,1727254240434,-1323.57396,0.00016428,2]
[339107298,1727254240444,-1323.57396,0.00016428,2]
[339107300,1727254240453,-255.056118,0.00016428,2]
[339107302,1727254240462,-255.056118,0.00016428,2]
[339107304,1727254240472,-197.070102,0.00016428,2]
[339107305,1727254240482,-197.070102,0.00016428,2]
[339107307,1727254240492,-401.694165,0.00016428,2]
[339107309,1727254240501,-401.694165,0.00016428,2]
[339107311,1727254240511,-151.0,0.00016428,2]
[339107314,1727254240522,-151.0,0.00016428,2]
[339107316,1727254240534,-151.0,0.00016428,2]
[339107318,1727254240544,-151.0,0.00016428,2]
[339107320,1727254240554,-151.0,0.00016428,2]
[339107322,1727254240564,-151.0,0.00016428,2]
[339107324,1727254240573,-151.0,0.00016428,2]